Department Family,Entity,Date Paid,Expense Type,Expense Area,Supplier,Transaction Number,Amount (�),Supplier VAT Registration Number
BEIS,Met Office,2021-12-06,06 ACCOMMODATION,CHIEF FINANCIAL OFFICER,ABOVE THE REST COMMERCIAL CLEANING LTD,462472,565,166969348
BEIS,Met Office,2021-12-13,11 SERVICES,MARKETS,ACCELERATION EMARKETING,462677,2500,848940776
BEIS,Met Office,2021-12-20,11 SERVICES,PEOPLE,ACTIVE LEARNING TEAM LTD,462956,2800,-
BEIS,Met Office,2021-12-15,11 SERVICES,CHIEF FINANCIAL OFFICER,ACTIVE PEST MANAGEMENT,462784,86.1,791419116
BEIS,Met Office,2021-12-06,11 SERVICES,CHIEF FINANCIAL OFFICER,ADAM PHONES LTD,462565,171,538877093
BEIS,Met Office,2021-12-01,11 SERVICES,MARKETS,ADOPSTAR,462434,1250,115036848
BEIS,Met Office,2021-12-20,03 STAFF COSTS T&S,SERVICES,AIRPORT CAR RENTALS LTD,463029,320,-
BEIS,Met Office,2021-12-20,03 STAFF COSTS T&S,SERVICES,AIRPORT CAR RENTALS LTD,463030,320,-
BEIS,Met Office,2021-12-08,11 SERVICES,TECHNOLOGY AND CIO,AKAMAI TECHNOLOGIES LTD,462586,4918.08,745091237
BEIS,Met Office,2021-12-08,11 SERVICES,TECHNOLOGY AND CIO,AKAMAI TECHNOLOGIES LTD,462586,25819.95,745091237
BEIS,Met Office,2021-12-02,11 SERVICES,CHIEF FINANCIAL OFFICER,ALLSTAR BUSINESS SOLUTIONS LTD,462420,2669.73,747880191
BEIS,Met Office,2021-12-21,11 SERVICES,CHIEF FINANCIAL OFFICER,ALLSTAR BUSINESS SOLUTIONS LTD,463097,2769.17,747880191
BEIS,Met Office,2021-12-06,11 SERVICES,PROGRAMMES,ALTO AEROSPACE LIMITED,462417,17964.6,275002528
BEIS,Met Office,2021-12-01,11 SERVICES,TECHNOLOGY AND CIO,AMAZON WEB SERVICES INC.,10427,1987.41,N/A
BEIS,Met Office,2021-12-01,11 SERVICES,TECHNOLOGY AND CIO,AMAZON WEB SERVICES INC.,10429,0.48,N/A
BEIS,Met Office,2021-12-01,11 SERVICES,TECHNOLOGY AND CIO,AMAZON WEB SERVICES INC.,10437,7.93,N/A
BEIS,Met Office,2021-12-01,11 SERVICES,TECHNOLOGY AND CIO,AMAZON WEB SERVICES INC.,10438,126542.61,N/A
BEIS,Met Office,2021-12-08,11 SERVICES,TECHNOLOGY AND CIO,AMAZON WEB SERVICES INC.,10440,13002.64,N/A
BEIS,Met Office,2021-12-22,11 SERVICES,TECHNOLOGY AND CIO,AMAZON WEB SERVICES INC.,10465,186.4,N/A
BEIS,Met Office,2021-12-22,11 SERVICES,TECHNOLOGY AND CIO,AMAZON WEB SERVICES INC.,10466,62800.13,N/A
BEIS,Met Office,2021-12-22,11 SERVICES,TECHNOLOGY AND CIO,AMAZON WEB SERVICES INC.,10466,70158.27,N/A
BEIS,Met Office,2021-12-22,11 SERVICES,TECHNOLOGY AND CIO,AMAZON WEB SERVICES INC.,10467,2603.22,N/A
BEIS,Met Office,2021-12-22,11 SERVICES,TECHNOLOGY AND CIO,AMAZON WEB SERVICES INC.,10468,0.41,N/A
BEIS,Met Office,2021-12-22,11 SERVICES,TECHNOLOGY AND CIO,AMAZON WEB SERVICES INC.,10473,13628.19,N/A
BEIS,Met Office,2021-12-09,11 SERVICES,CHIEF FINANCIAL OFFICER,ANVIL MOBILE LIMITED,462699,82.6,981686175
BEIS,Met Office,2021-12-09,11 SERVICES,CHIEF FINANCIAL OFFICER,ANVIL MOBILE LIMITED,462699,98.6,981686175
BEIS,Met Office,2021-12-09,11 SERVICES,CHIEF FINANCIAL OFFICER,ANVIL MOBILE LIMITED,462699,111.3,981686175
BEIS,Met Office,2021-12-09,11 SERVICES,CHIEF FINANCIAL OFFICER,ANVIL MOBILE LIMITED,462699,34.85,981686175
BEIS,Met Office,2021-12-09,11 SERVICES,CHIEF FINANCIAL OFFICER,ANVIL MOBILE LIMITED,462699,43.6,981686175
BEIS,Met Office,2021-12-20,11 SERVICES,MARKETS,APM GEO LTD,463057,600,169466658
BEIS,Met Office,2021-12-08,11 SERVICES,CHIEF FINANCIAL OFFICER,APPLE CENTRAL TAXIS,462650,593,449238720
BEIS,Met Office,2021-12-20,12 INTERNATIONAL,MARKETS,APPLIED SATELLITE TECHNOLOGY SYSTEMS LTD,463070,32.19,720108683
BEIS,Met Office,2021-12-21,11 SERVICES,SERVICES,APPLIED SATELLITE TECHNOLOGY SYSTEMS LTD,463076,285.39,720108683
BEIS,Met Office,2021-12-21,11 SERVICES,SERVICES,APPLIED SATELLITE TECHNOLOGY SYSTEMS LTD,463078,84.66,720108683
BEIS,Met Office,2021-12-21,11 SERVICES,SERVICES,APPLIED SATELLITE TECHNOLOGY SYSTEMS LTD,463079,64.71,720108683
BEIS,Met Office,2021-12-14,13 MISCELLANEOUS,SERVICES,AUTOMATED DOCUMENT SERVICES LTD,462864,4268.32,105353449
BEIS,Met Office,2021-12-01,11 SERVICES,TECHNOLOGY AND CIO,BAE SYSTEMS APPLIED INTELLIGENCE LIMITED,462354,12984,GB641407169
BEIS,Met Office,2021-12-01,11 SERVICES,TECHNOLOGY AND CIO,BAE SYSTEMS APPLIED INTELLIGENCE LIMITED,462355,9738,GB641407169
BEIS,Met Office,2021-12-01,11 SERVICES,TECHNOLOGY AND CIO,BAE SYSTEMS APPLIED INTELLIGENCE LIMITED,462356,9738,GB641407169
BEIS,Met Office,2021-12-13,11 SERVICES,PROGRAMMES,BAE SYSTEMS APPLIED INTELLIGENCE LIMITED,462672,25586.88,GB641407169
BEIS,Met Office,2021-12-15,11 SERVICES,TECHNOLOGY AND CIO,BAE SYSTEMS APPLIED INTELLIGENCE LIMITED,462730,18760,GB641407169
BEIS,Met Office,2021-12-15,11 SERVICES,TECHNOLOGY AND CIO,BAE SYSTEMS APPLIED INTELLIGENCE LIMITED,462731,13530,GB641407169
BEIS,Met Office,2021-12-16,11 SERVICES,TECHNOLOGY AND CIO,BAE SYSTEMS APPLIED INTELLIGENCE LIMITED,462795,9045.36,GB641407169
BEIS,Met Office,2021-12-15,11 SERVICES,PROGRAMMES,BAE SYSTEMS APPLIED INTELLIGENCE LIMITED,462798,20934.72,GB641407169
BEIS,Met Office,2021-12-14,11 SERVICES,TECHNOLOGY AND CIO,BAE SYSTEMS APPLIED INTELLIGENCE LIMITED,462813,21734.31,GB641407169
BEIS,Met Office,2021-12-15,11 SERVICES,PROGRAMMES,BAE SYSTEMS APPLIED INTELLIGENCE LIMITED,462814,12540,GB641407169
BEIS,Met Office,2021-12-15,11 SERVICES,PROGRAMMES,BAE SYSTEMS APPLIED INTELLIGENCE LIMITED,462815,14756.07,GB641407169
BEIS,Met Office,2021-12-15,11 SERVICES,PROGRAMMES,BAE SYSTEMS APPLIED INTELLIGENCE LIMITED,462816,16884,GB641407169
BEIS,Met Office,2021-12-15,11 SERVICES,PROGRAMMES,BAE SYSTEMS APPLIED INTELLIGENCE LIMITED,462817,14070,GB641407169
BEIS,Met Office,2021-12-15,11 SERVICES,PROGRAMMES,BAE SYSTEMS APPLIED INTELLIGENCE LIMITED,462854,12540,GB641407169
BEIS,Met Office,2021-12-14,11 SERVICES,TECHNOLOGY AND CIO,BAE SYSTEMS APPLIED INTELLIGENCE LIMITED,462888,-21734.31,GB641407169
BEIS,Met Office,2021-12-15,11 SERVICES,PROGRAMMES,BAE SYSTEMS APPLIED INTELLIGENCE LIMITED,462889,21734.31,GB641407169
BEIS,Met Office,2021-12-20,11 SERVICES,TECHNOLOGY AND CIO,BAE SYSTEMS APPLIED INTELLIGENCE LIMITED,463019,8580,GB641407169
BEIS,Met Office,2021-12-22,11 SERVICES,PEOPLE,BANK OF CREATIVITY,463074,6000,-
BEIS,Met Office,2021-12-01,REVENUE,MARKETS,Barcelona Supercomputing Center,23225,26814.51,ESS0800099D
BEIS,Met Office,2021-12-07,06 ACCOMMODATION,CHIEF FINANCIAL OFFICER,Belfast International Airport Ltd,462569,1565.51,617777601
BEIS,Met Office,2021-12-23,11 SERVICES,SERVICES,BENTLEY TELECOM LTD (was Bentley Walker),10470,633.35,107995930
BEIS,Met Office,2021-12-23,11 SERVICES,SERVICES,BENTLEY TELECOM LTD (was Bentley Walker),10481,-638.65,107995930
BEIS,Met Office,2021-12-08,06 ACCOMMODATION,CHIEF FINANCIAL OFFICER,BIDVEST NOONAN UK LTD,462647,395.68,GB847176988
BEIS,Met Office,2021-12-08,06 ACCOMMODATION,CHIEF FINANCIAL OFFICER,BIDVEST NOONAN UK LTD,462648,890.6,GB847176988
BEIS,Met Office,2021-12-15,11 SERVICES,PEOPLE,BITPOD LIMITED,462793,3093.46,124 9359 03
BEIS,Met Office,2021-12-15,11 SERVICES,MARKETS,BJSS LIMITED,462780,43262.5,613295452
BEIS,Met Office,2021-12-15,11 SERVICES,MARKETS,BJSS LIMITED,462850,36837.5,613295452
BEIS,Met Office,2021-12-15,11 SERVICES,PROGRAMMES,BJSS LIMITED,462852,10937.5,613295452
BEIS,Met Office,2021-12-15,11 SERVICES,MARKETS,BJSS LIMITED,462853,3650,613295452
BEIS,Met Office,2021-12-22,11 SERVICES,PROGRAMMES,BJSS LIMITED,463104,5761,613295452
BEIS,Met Office,2021-12-02,11 SERVICES,MARKETS,BMG RESEARCH LTD,462410,3795,580 6606 32
BEIS,Met Office,2021-12-06,11 SERVICES,SERVICES,Boc Ltd,462466,15962.05,226556555
BEIS,Met Office,2021-12-09,08 SOFTWARE LICENCES,TECHNOLOGY AND CIO,BOXXE,462707,19647.24,734245248
BEIS,Met Office,2021-12-16,11 SERVICES,MARKETS,Bray Leino Ltd,462861,9900,135605525
BEIS,Met Office,2021-12-21,11 SERVICES,MARKETS,Bray Leino Ltd,463099,2550,135605525
BEIS,Met Office,2021-12-02,06 ACCOMMODATION,CHIEF FINANCIAL OFFICER,British Gas Trading Ltd,462424,30.38,684966762
BEIS,Met Office,2021-12-03,11 SERVICES,PEOPLE,BROADBEAN TECHNOLOGY LTD,462430,623.7,GB184088778
BEIS,Met Office,2021-12-03,11 SERVICES,PEOPLE,BROADBEAN TECHNOLOGY LTD,462431,389.05,GB184088778
BEIS,Met Office,2021-12-01,13 MISCELLANEOUS,TECHNOLOGY AND CIO,BSI STANDARDS,462346,2300,243457071
BEIS,Met Office,2021-12-06,11 SERVICES,CHIEF FINANCIAL OFFICER,BT GLOBAL SERVICES,462389,12752.33,245719348
BEIS,Met Office,2021-12-20,11 SERVICES,CHIEF FINANCIAL OFFICER,BT GLOBAL SERVICES,463020,11209.39,245719348
BEIS,Met Office,2021-12-06,11 SERVICES,CHIEF FINANCIAL OFFICER,BT plc,462387,11451.98,245719348
BEIS,Met Office,2021-12-21,11 SERVICES,CHIEF FINANCIAL OFFICER,BT plc,463059,876.22,245719348
BEIS,Met Office,2021-12-22,06 ACCOMMODATION,CHIEF FINANCIAL OFFICER,BUSINESS STREAM,463049,795.36,945850885
BEIS,Met Office,2021-12-13,06 ACCOMMODATION,CHIEF FINANCIAL OFFICER,BUSINESS SUPPORT CENTRE LTD,462781,44.22,927365208
BEIS,Met Office,2021-12-07,11 SERVICES,MARKETS,CACI LTD,462568,145969.21,380609841
BEIS,Met Office,2021-12-01,06 ACCOMMODATION,CHIEF FINANCIAL OFFICER,CALOR GAS LIMITED,462388,1303.34,207610984
BEIS,Met Office,2021-12-10,06 ACCOMMODATION,CHIEF FINANCIAL OFFICER,CALOR GAS LIMITED,462764,665.12,207610984
BEIS,Met Office,2021-12-13,INFORMATION TECHNOLOGY,PROGRAMMES,Campbell Scientific Ltd,462043,113,428453933
BEIS,Met Office,2021-12-13,INFORMATION TECHNOLOGY,PROGRAMMES,Campbell Scientific Ltd,462043,180,428453933
BEIS,Met Office,2021-12-13,11 SERVICES,PROGRAMMES,Campbell Scientific Ltd,462043,1552.5,428453933
BEIS,Met Office,2021-12-13,11 SERVICES,PROGRAMMES,Campbell Scientific Ltd,462043,1170,428453933
BEIS,Met Office,2021-12-06,STOCK,SERVICES,Campbell Scientific Ltd,462282,0,428453933
BEIS,Met Office,2021-12-06,STOCK,SERVICES,Campbell Scientific Ltd,462282,0,428453933
BEIS,Met Office,2021-12-06,TRADE CREDITORS,SERVICES,Campbell Scientific Ltd,462282,2560.5,428453933
BEIS,Met Office,2021-12-06,TRADE CREDITORS,SERVICES,Campbell Scientific Ltd,462282,13612.5,428453933
BEIS,Met Office,2021-12-06,11 SERVICES,SERVICES,Campbell Scientific Ltd,462282,102,428453933
BEIS,Met Office,2021-12-02,INFORMATION TECHNOLOGY,PROGRAMMES,Campbell Scientific Ltd,462339,1368.9,428453933
BEIS,Met Office,2021-12-02,07 EQUIPMENT,SERVICES,Campbell Scientific Ltd,462339,1543,428453933
BEIS,Met Office,2021-12-02,INFORMATION TECHNOLOGY,PROGRAMMES,Campbell Scientific Ltd,462340,180,428453933
BEIS,Met Office,2021-12-02,11 SERVICES,PROGRAMMES,Campbell Scientific Ltd,462340,1689.5,428453933
BEIS,Met Office,2021-12-02,11 SERVICES,PROGRAMMES,Campbell Scientific Ltd,462340,1170,428453933
BEIS,Met Office,2021-12-06,STOCK,SERVICES,Campbell Scientific Ltd,462465,0,428453933
BEIS,Met Office,2021-12-06,STOCK,SERVICES,Campbell Scientific Ltd,462465,0,428453933
BEIS,Met Office,2021-12-06,TRADE CREDITORS,SERVICES,Campbell Scientific Ltd,462465,7681.5,428453933
BEIS,Met Office,2021-12-06,TRADE CREDITORS,SERVICES,Campbell Scientific Ltd,462465,40837.5,428453933
BEIS,Met Office,2021-12-06,11 SERVICES,SERVICES,Campbell Scientific Ltd,462465,231,428453933
BEIS,Met Office,2021-12-15,13 MISCELLANEOUS,CHIEF FINANCIAL OFFICER,CANON UK LTD,462790,2741.42,523797128
BEIS,Met Office,2021-12-15,13 MISCELLANEOUS,CHIEF FINANCIAL OFFICER,CANON UK LTD,462790,26.92,523797128
BEIS,Met Office,2021-12-15,13 MISCELLANEOUS,CHIEF FINANCIAL OFFICER,CANON UK LTD,462790,62.82,523797128
BEIS,Met Office,2021-12-15,13 MISCELLANEOUS,CHIEF FINANCIAL OFFICER,CANON UK LTD,462790,7.64,523797128
BEIS,Met Office,2021-12-15,13 MISCELLANEOUS,CHIEF FINANCIAL OFFICER,CANON UK LTD,462790,15.52,523797128
BEIS,Met Office,2021-12-15,13 MISCELLANEOUS,CHIEF FINANCIAL OFFICER,CANON UK LTD,462790,89.74,523797128
BEIS,Met Office,2021-12-15,13 MISCELLANEOUS,CHIEF FINANCIAL OFFICER,CANON UK LTD,462790,89.74,523797128
BEIS,Met Office,2021-12-15,13 MISCELLANEOUS,CHIEF FINANCIAL OFFICER,CANON UK LTD,462790,89.74,523797128
BEIS,Met Office,2021-12-15,13 MISCELLANEOUS,CHIEF FINANCIAL OFFICER,CANON UK LTD,462790,23.16,523797128
BEIS,Met Office,2021-12-16,13 MISCELLANEOUS,CHIEF FINANCIAL OFFICER,CANON UK LTD,462792,11812.72,523797128
BEIS,Met Office,2021-12-15,06 ACCOMMODATION,CHIEF FINANCIAL OFFICER,CARDIFF COMMISSIONING LTD,462809,3600,484190139
BEIS,Met Office,2021-12-02,13 MISCELLANEOUS,CHIEF FINANCIAL OFFICER,CARDIFF EXECUTIVE CENTRE LTD,462429,1.45,864497378
BEIS,Met Office,2021-12-20,13 MISCELLANEOUS,CHIEF FINANCIAL OFFICER,CARDIFF EXECUTIVE CENTRE LTD,463046,3.6,864497378
BEIS,Met Office,2021-12-20,06 ACCOMMODATION,CHIEF FINANCIAL OFFICER,CARDIFF EXECUTIVE CENTRE LTD,463047,2470,864497378
BEIS,Met Office,2021-12-07,03 STAFF COSTS T&S,SERVICES,CARTUS LTD,462581,200,768489458
BEIS,Met Office,2021-12-10,03 STAFF COSTS T&S,SERVICES,CARTUS LTD,462706,200,768489458
BEIS,Met Office,2021-12-08,08 SOFTWARE LICENCES,PEOPLE,CATALYST IT,462640,2075,978169262
BEIS,Met Office,2021-12-16,PLANT AND EQUIPMENT,CHIEF FINANCIAL OFFICER,CBRE MANAGED SERVICES LTD,462264,124273.02,853936883
BEIS,Met Office,2021-12-16,PLANT AND EQUIPMENT,CHIEF FINANCIAL OFFICER,CBRE MANAGED SERVICES LTD,462265,124273.02,853936883
BEIS,Met Office,2021-12-02,06 ACCOMMODATION,CHIEF FINANCIAL OFFICER,CBRE MANAGED SERVICES LTD,462440,17631.8,853936883
BEIS,Met Office,2021-12-02,06 ACCOMMODATION,CHIEF FINANCIAL OFFICER,CBRE MANAGED SERVICES LTD,462441,14087.24,853936883
BEIS,Met Office,2021-12-20,06 ACCOMMODATION,CHIEF FINANCIAL OFFICER,CBRE MANAGED SERVICES LTD,462970,16206.49,853936883
BEIS,Met Office,2021-12-20,06 ACCOMMODATION,CHIEF FINANCIAL OFFICER,CBRE MANAGED SERVICES LTD,462971,27079.82,853936883
BEIS,Met Office,2021-12-22,06 ACCOMMODATION,CHIEF FINANCIAL OFFICER,CBRE MANAGED SERVICES LTD,463168,144220.3,853936883
BEIS,Met Office,2021-12-22,FIXTURE & FITTINGS,CHIEF FINANCIAL OFFICER,CBRE MANAGED SERVICES LTD,463171,19065.85,853936883
BEIS,Met Office,2021-12-22,06 ACCOMMODATION,CHIEF FINANCIAL OFFICER,CBRE MANAGED SERVICES LTD,463172,20586.17,853936883
BEIS,Met Office,2021-12-21,08 SOFTWARE LICENCES,CHIEF FINANCIAL OFFICER,CEMAR,463107,90,915042161
BEIS,Met Office,2021-12-13,11 SERVICES,MARKETS,Cgi It Uk Limited,462638,191163.08,232615194
BEIS,Met Office,2021-12-08,03 STAFF COSTS T&S,SERVICES,CHARLIE'S TRAVEL LTD,462551,882.52,783848277
BEIS,Met Office,2021-12-20,03 STAFF COSTS T&S,SERVICES,CHARLIE'S TRAVEL LTD,463050,110.91,783848277
BEIS,Met Office,2021-12-20,03 STAFF COSTS T&S,SERVICES,CHARLIE'S TRAVEL LTD,463082,209.09,783848277
BEIS,Met Office,2021-12-20,03 STAFF COSTS T&S,MARKETS,CHARLIE'S TRAVEL LTD,463084,552.58,783848277
BEIS,Met Office,2021-12-08,07 EQUIPMENT,MARKETS,CIMEL ELECTRONIQUE,23278,1057.4,FR89662017201
BEIS,Met Office,2021-12-08,07 EQUIPMENT,MARKETS,CIMEL ELECTRONIQUE,23278,26864.53,FR89662017201
BEIS,Met Office,2021-12-17,11 SERVICES,PEOPLE,CIVICA UK LIMITED,462969,7162.66,391171065
BEIS,Met Office,2021-12-21,11 SERVICES,PEOPLE,CIVICA UK LIMITED,463060,316.66,391171065
BEIS,Met Office,2021-12-21,11 SERVICES,PEOPLE,CIVICA UK LIMITED,463063,6846,391171065
BEIS,Met Office,2021-12-06,13 MISCELLANEOUS,SERVICES,CLIMATOLOGICAL OBSERVERS LINK (COL),462488,39,NOTVATREG
BEIS,Met Office,2021-12-08,11 SERVICES,SERVICES,CLOUDREACH EUROPE LIMITED,462646,7300,978187168
BEIS,Met Office,2021-12-08,11 SERVICES,TECHNOLOGY AND CIO,CLOUDREACH EUROPE LIMITED,462664,5150,978187168
BEIS,Met Office,2021-12-08,11 SERVICES,SERVICES,COLLECTE LOCALISATION SATELLITES (C.L.S.),23228,5740.59,FR95338034390
BEIS,Met Office,2021-12-08,13 MISCELLANEOUS,SERVICES,COLLECTE LOCALISATION SATELLITES (C.L.S.),23229,610.96,FR95338034390
BEIS,Met Office,2021-12-08,11 SERVICES,SERVICES,COLLECTE LOCALISATION SATELLITES (C.L.S.),23230,11163.64,FR95338034390
BEIS,Met Office,2021-12-01,08 SOFTWARE LICENCES,TECHNOLOGY AND CIO,COMPUTACENTER (UK) LTD,462412,70074.34,490334648
BEIS,Met Office,2021-12-15,INFORMATION TECHNOLOGY,TECHNOLOGY AND CIO,COMPUTACENTER (UK) LTD,462907,219976.72,490334648
BEIS,Met Office,2021-12-10,08 SOFTWARE LICENCES,CHIEF FINANCIAL OFFICER,CONDECO LTD,462708,8599.76,756256215
BEIS,Met Office,2021-12-10,08 SOFTWARE LICENCES,CHIEF FINANCIAL OFFICER,CONDECO LTD,462708,23566.08,756256215
BEIS,Met Office,2021-12-10,06 ACCOMMODATION,CHIEF FINANCIAL OFFICER,CORONA ENERGY LTD,462666,15514.4,577704800
BEIS,Met Office,2021-12-09,06 ACCOMMODATION,CHIEF FINANCIAL OFFICER,CORONA ENERGY LTD,462667,822.6,577704800
BEIS,Met Office,2021-12-07,12 INTERNATIONAL,MARKETS,CROWN AGENTS BANK,462504,13806.2,-
BEIS,Met Office,2021-12-20,06 ACCOMMODATION,CHIEF FINANCIAL OFFICER,D&G OFFICE SERVICES LTD,463067,276.25,272997547
BEIS,Met Office,2021-12-20,06 ACCOMMODATION,CHIEF FINANCIAL OFFICER,D&G OFFICE SERVICES LTD,463067,276.25,272997547
BEIS,Met Office,2021-12-21,06 ACCOMMODATION,CHIEF FINANCIAL OFFICER,D&G OFFICE SERVICES LTD,463105,292.5,272997547
BEIS,Met Office,2021-12-08,11 SERVICES,CHIEF FINANCIAL OFFICER,DBS FINANCE RECEIPTS CTS,23252,163.81,888805068
BEIS,Met Office,2021-12-02,03 STAFF COSTS T&S,SERVICES,DBS FINANCE RECEIPTS CTS,462442,7205,888805068
BEIS,Met Office,2021-12-20,11 SERVICES,MARKETS,DBS FINANCE RECEIPTS CTS,463031,11670.23,888805068
BEIS,Met Office,2021-12-23,13 MISCELLANEOUS,SERVICES,DBS FINANCE RECEIPTS CTS,463165,30,888805068
BEIS,Met Office,2021-12-08,13 MISCELLANEOUS,CHIEF FINANCIAL OFFICER,DEMSTAR BUSINESS SOLUTIONS LTD,23231,110.9,10156145J
BEIS,Met Office,2021-12-16,11 SERVICES,CHIEF FINANCIAL OFFICER,DIGITAL COMMUNICATIONS SYSTEMS LIMITED,462948,2933.1,GB 556 1971 19
BEIS,Met Office,2021-12-07,13 MISCELLANEOUS,SERVICES,DOT SOFTWARE LTD,462550,585,701022805
BEIS,Met Office,2021-12-06,11 SERVICES,PROGRAMMES,Dstl,462548,4040.6,888805166
BEIS,Met Office,2021-12-07,08 SOFTWARE LICENCES,TECHNOLOGY AND CIO,DXC TECHNOLOGY,462495,9624.36,GB432995915
BEIS,Met Office,2021-12-07,08 SOFTWARE LICENCES,TECHNOLOGY AND CIO,DXC TECHNOLOGY,462495,14976,GB432995915
BEIS,Met Office,2021-12-07,08 SOFTWARE LICENCES,TECHNOLOGY AND CIO,DXC TECHNOLOGY,462495,77446.68,GB432995915
BEIS,Met Office,2021-12-07,08 SOFTWARE LICENCES,TECHNOLOGY AND CIO,DXC TECHNOLOGY,462495,300.96,GB432995915
BEIS,Met Office,2021-12-07,08 SOFTWARE LICENCES,TECHNOLOGY AND CIO,DXC TECHNOLOGY,462495,30091.32,GB432995915
BEIS,Met Office,2021-12-07,08 SOFTWARE LICENCES,TECHNOLOGY AND CIO,DXC TECHNOLOGY,462495,145836,GB432995915
BEIS,Met Office,2021-12-07,08 SOFTWARE LICENCES,TECHNOLOGY AND CIO,DXC TECHNOLOGY,462495,115135.08,GB432995915
BEIS,Met Office,2021-12-07,08 SOFTWARE LICENCES,TECHNOLOGY AND CIO,DXC TECHNOLOGY,462495,324421.2,GB432995915
BEIS,Met Office,2021-12-07,08 SOFTWARE LICENCES,TECHNOLOGY AND CIO,DXC TECHNOLOGY,462495,5256,GB432995915
BEIS,Met Office,2021-12-07,08 SOFTWARE LICENCES,TECHNOLOGY AND CIO,DXC TECHNOLOGY,462495,117450,GB432995915
BEIS,Met Office,2021-12-02,13 MISCELLANEOUS,CHIEF FINANCIAL OFFICER,EAST ANGLIAN WATER COOLER CO,462419,37.1,676668178
BEIS,Met Office,2021-12-14,11 SERVICES,PEOPLE,EDENRED I&M (IRS VOUCHERS),461880,20828.4,649 503 520
BEIS,Met Office,2021-12-14,11 SERVICES,PEOPLE,EDENRED I&M (IRS VOUCHERS),462649,40565.4,649 503 520
BEIS,Met Office,2021-12-14,11 SERVICES,PEOPLE,EDENRED I&M (IRS VOUCHERS),462803,-336.6,649 503 520
BEIS,Met Office,2021-12-14,11 SERVICES,PEOPLE,EDENRED I&M (IRS VOUCHERS),462804,-51,649 503 520
BEIS,Met Office,2021-12-08,CYCLESCHEME,OTHER,EDENRED UK (CYCLESCHEME),462590,2865.78,649 503 520
BEIS,Met Office,2021-12-15,06 ACCOMMODATION,CHIEF FINANCIAL OFFICER,EDF ENERGY CUSTOMERS PLC,462874,118883.64,523041202
BEIS,Met Office,2021-12-15,06 ACCOMMODATION,CHIEF FINANCIAL OFFICER,EDF ENERGY CUSTOMERS PLC,462875,401942.57,523041202
BEIS,Met Office,2021-12-15,06 ACCOMMODATION,CHIEF FINANCIAL OFFICER,EDF ENERGY CUSTOMERS PLC,462876,142300.64,523041202
BEIS,Met Office,2021-12-06,11 SERVICES,CHIEF FINANCIAL OFFICER,EDSON TIGER LTD,462416,7650,166910983
BEIS,Met Office,2021-12-01,11 SERVICES,CHIEF FINANCIAL OFFICER,EIR,23262,51.57,4736919B
BEIS,Met Office,2021-12-23,13 MISCELLANEOUS,SCIENCE,ELSEVIER B.V.,449112,42784.6,NL00503301980
BEIS,Met Office,2021-12-23,13 MISCELLANEOUS,SERVICES,ELSEVIER B.V.,449112,42784.6,NL00503301980
BEIS,Met Office,2021-12-23,13 MISCELLANEOUS,SCIENCE,ELSEVIER B.V.,453472,-42804.69,NL00503301980
BEIS,Met Office,2021-12-23,13 MISCELLANEOUS,SERVICES,ELSEVIER B.V.,453472,-42764.51,NL00503301980
BEIS,Met Office,2021-12-13,13 MISCELLANEOUS,PROGRAMMES,ELSEVIER SCIENCE LTD,462786,4344.43,494627212
BEIS,Met Office,2021-12-13,13 MISCELLANEOUS,SCIENCE,ELSEVIER SCIENCE LTD,462786,39099.87,494627212
BEIS,Met Office,2021-12-13,13 MISCELLANEOUS,SERVICES,ELSEVIER SCIENCE LTD,462786,43444.32,494627212
BEIS,Met Office,2021-12-06,03 STAFF COSTS T&S,CHIEF FINANCIAL OFFICER,ENTERPRISE RENT A CAR UK LTD,462587,2265.93,215557314
BEIS,Met Office,2021-12-13,03 STAFF COSTS T&S,CHIEF FINANCIAL OFFICER,ENTERPRISE RENT A CAR UK LTD,462802,2012.6,215557314
BEIS,Met Office,2021-12-20,03 STAFF COSTS T&S,CHIEF FINANCIAL OFFICER,ENTERPRISE RENT A CAR UK LTD,463081,754.3,215557314
BEIS,Met Office,2021-12-01,11 SERVICES,PEOPLE,ENVIRAL LTD,462350,4050,-
BEIS,Met Office,2021-12-23,11 SERVICES,PEOPLE,EQUINITI ICS LTD,454606,7162.66,915967778
BEIS,Met Office,2021-12-23,11 SERVICES,PEOPLE,EQUINITI ICS LTD,456374,-7162.66,915967778
BEIS,Met Office,2021-12-06,11 SERVICES,PROGRAMMES,Esri (Uk) Ltd,462545,21204.33,787430791
BEIS,Met Office,2021-12-14,08 SOFTWARE LICENCES,PROGRAMMES,Esri (Uk) Ltd,462782,647.16,787430791
BEIS,Met Office,2021-12-15,08 SOFTWARE LICENCES,TECHNOLOGY AND CIO,ET SPATIAL TECHNIQUES,10452,1192.47,-
BEIS,Met Office,2021-12-08,11 SERVICES,SERVICES,"EUTELSAT, S.A.",23241,2927.64,-
BEIS,Met Office,2021-12-22,11 SERVICES,SERVICES,"EUTELSAT, S.A.",23280,2886.13,-
BEIS,Met Office,2021-12-23,13 MISCELLANEOUS,OTHER,Exeter & Devon Airport Limited,460753,25527.46,168173978
BEIS,Met Office,2021-12-23,13 MISCELLANEOUS,OTHER,Exeter & Devon Airport Limited,460892,-25527.46,168173978
BEIS,Met Office,2021-12-14,11 SERVICES,PEOPLE,Exeter College,440303,3500,125451632
BEIS,Met Office,2021-12-14,11 SERVICES,PEOPLE,Exeter College,452453,-3500,125451632
BEIS,Met Office,2021-12-13,11 SERVICES,CHIEF FINANCIAL OFFICER,EXPONENTIAL-E,460647,4448.25,GB798572653
BEIS,Met Office,2021-12-13,11 SERVICES,CHIEF FINANCIAL OFFICER,EXPONENTIAL-E,460649,1919.5,GB798572653
BEIS,Met Office,2021-12-13,11 SERVICES,CHIEF FINANCIAL OFFICER,EXPONENTIAL-E,462727,1073.79,GB798572653
BEIS,Met Office,2021-12-06,06 ACCOMMODATION,CHIEF FINANCIAL OFFICER,FAIR ISLE ELECTRICITY COMPANY LTD,462509,104.42,774548783
BEIS,Met Office,2021-12-16,03 STAFF COSTS T&S,SERVICES,FALKLAND ISLAND COMPANY LTD,462799,700,N/A
BEIS,Met Office,2021-12-14,03 STAFF COSTS T&S,SERVICES,FALKLAND ISLAND COMPANY LTD,462800,700,N/A
BEIS,Met Office,2021-12-14,03 STAFF COSTS T&S,SERVICES,FALKLAND ISLAND COMPANY LTD,462801,700,N/A
BEIS,Met Office,2021-12-02,11 SERVICES,MARKETS,FCDO,462343,854.13,888813560
BEIS,Met Office,2021-12-20,11 SERVICES,PROGRAMMES,FCDO,462908,6806.46,888813560
BEIS,Met Office,2021-12-01,07 EQUIPMENT,SERVICES,FCDO SERVICES,462362,212.39,888848729
BEIS,Met Office,2021-12-06,04 CONTRACTORS,TECHNOLOGY AND CIO,FDM GROUP LIMITED,462492,5625,583540529
BEIS,Met Office,2021-12-06,04 CONTRACTORS,TECHNOLOGY AND CIO,FDM GROUP LIMITED,462493,4320,583540529
BEIS,Met Office,2021-12-06,04 CONTRACTORS,TECHNOLOGY AND CIO,FDM GROUP LIMITED,462494,5940,583540529
BEIS,Met Office,2021-12-08,04 CONTRACTORS,TECHNOLOGY AND CIO,FDM GROUP LIMITED,462645,4200,583540529
BEIS,Met Office,2021-12-02,11 SERVICES,PROGRAMMES,FLYFORM LTD,462461,13930,237333808
BEIS,Met Office,2021-12-06,11 SERVICES,SERVICES,FLYFORM LTD,462462,72265,237333808
BEIS,Met Office,2021-12-02,11 SERVICES,TECHNOLOGY AND CIO,FLYFORM LTD,462463,16915,237333808
BEIS,Met Office,2021-12-02,05 CONSULTANTS,PROGRAMMES,FLYFORM LTD,462464,59533.75,237333808
BEIS,Met Office,2021-12-16,11 SERVICES,PROGRAMMES,FLYFORM LTD,462470,3750,237333808
BEIS,Met Office,2021-12-06,FIXTURE & FITTINGS,CHIEF FINANCIAL OFFICER,FMS INTERIOR SERVICES LTD,462132,21262.65,922056940
BEIS,Met Office,2021-12-15,08 SOFTWARE LICENCES,TECHNOLOGY AND CIO,FORGEROCK LTD,462811,24740.75,988863532
BEIS,Met Office,2021-12-15,08 SOFTWARE LICENCES,TECHNOLOGY AND CIO,FORGEROCK LTD,462811,87845.07,988863532
BEIS,Met Office,2021-12-15,11 SERVICES,TECHNOLOGY AND CIO,FORGEROCK LTD,462811,7400,988863532
BEIS,Met Office,2021-12-03,12 INTERNATIONAL,MARKETS,FOXSTONES TRAINING AND LEARNING,462413,2950,-
BEIS,Met Office,2021-12-09,11 SERVICES,CHIEF FINANCIAL OFFICER,GAMMA TELECOM LTD,462670,25.55,823820344
BEIS,Met Office,2021-12-09,11 SERVICES,CHIEF FINANCIAL OFFICER,GAMMA TELECOM LTD,462670,27897.84,823820344
BEIS,Met Office,2021-12-21,11 SERVICES,PROGRAMMES,GAMMA TELECOM LTD,463045,3743.62,823820344
BEIS,Met Office,2021-12-21,11 SERVICES,PROGRAMMES,GAMMA TELECOM LTD,463045,54,823820344
BEIS,Met Office,2021-12-21,11 SERVICES,PROGRAMMES,GAMMA TELECOM LTD,463045,38,823820344
BEIS,Met Office,2021-12-09,11 SERVICES,CHIEF FINANCIAL OFFICER,GB GROUP PLC,462637,708.6,539716218
BEIS,Met Office,2021-12-13,04 CONTRACTORS,PROGRAMMES,GCS IT RECRUITMENT SPECIALISTS LTD,462807,11850,896156575
BEIS,Met Office,2021-12-09,11 SERVICES,CHIEF FINANCIAL OFFICER,GIBRALTAR NYNEX COMMUNICATIONS LTD,462678,702,NOVAT
BEIS,Met Office,2021-12-03,08 SOFTWARE LICENCES,TECHNOLOGY AND CIO,GOOGLE IRELAND LTD,462491,37.31,6388047V
BEIS,Met Office,2021-12-01,06 ACCOMMODATION,CHIEF FINANCIAL OFFICER,GOVERNMENT PROPERTY AGENCY,462375,15.27,888 8508 47
BEIS,Met Office,2021-12-14,11 SERVICES,PEOPLE,GQA QUALIFICATIONS LTD,462229,650,-
BEIS,Met Office,2021-12-20,06 ACCOMMODATION,CHIEF FINANCIAL OFFICER,HARVAIR LTD,463012,4500,N/A
BEIS,Met Office,2021-12-23,13 MISCELLANEOUS,CHIEF FINANCIAL OFFICER,HEALIX INTERNATIONAL,459234,368.57,127632909
BEIS,Met Office,2021-12-23,13 MISCELLANEOUS,CHIEF FINANCIAL OFFICER,HEALIX INTERNATIONAL,459365,-368.57,127632909
BEIS,Met Office,2021-12-17,FIXTURE & FITTINGS,PROGRAMMES,HITEK ELECTRONIC MATERIALS LTD,462941,404.23,365 0164 68
BEIS,Met Office,2021-12-17,FIXTURE & FITTINGS,PROGRAMMES,HITEK ELECTRONIC MATERIALS LTD,462941,21943.49,365 0164 68
BEIS,Met Office,2021-12-17,FIXTURE & FITTINGS,PROGRAMMES,HITEK ELECTRONIC MATERIALS LTD,462941,3305.41,365 0164 68
BEIS,Met Office,2021-12-17,FIXTURE & FITTINGS,PROGRAMMES,HITEK ELECTRONIC MATERIALS LTD,462941,2908.76,365 0164 68
BEIS,Met Office,2021-12-17,FIXTURE & FITTINGS,PROGRAMMES,HITEK ELECTRONIC MATERIALS LTD,462941,2636.61,365 0164 68
BEIS,Met Office,2021-12-17,FIXTURE & FITTINGS,PROGRAMMES,HITEK ELECTRONIC MATERIALS LTD,462941,620.51,365 0164 68
BEIS,Met Office,2021-12-20,11 SERVICES,PROGRAMMES,HOGAN LOVELLS INTERNATIONAL LLP,463051,21026.5,GB123371543
BEIS,Met Office,2021-12-20,11 SERVICES,PROGRAMMES,HOGAN LOVELLS INTERNATIONAL LLP,463052,372248.31,GB123371543
BEIS,Met Office,2021-12-20,11 SERVICES,PROGRAMMES,HOGAN LOVELLS INTERNATIONAL LLP,463053,6273.7,GB123371543
BEIS,Met Office,2021-12-20,11 SERVICES,PROGRAMMES,HOGAN LOVELLS INTERNATIONAL LLP,463053,12571.83,GB123371543
BEIS,Met Office,2021-12-20,11 SERVICES,PROGRAMMES,HOGAN LOVELLS INTERNATIONAL LLP,463054,37797.3,GB123371543
BEIS,Met Office,2021-12-20,11 SERVICES,PROGRAMMES,HOGAN LOVELLS INTERNATIONAL LLP,463055,57052.72,GB123371543
BEIS,Met Office,2021-12-20,11 SERVICES,PROGRAMMES,HOGAN LOVELLS INTERNATIONAL LLP,463056,22790.78,GB123371543
BEIS,Met Office,2021-12-20,11 SERVICES,PROGRAMMES,HOGAN LOVELLS INTERNATIONAL LLP,463058,430963.02,GB123371543
BEIS,Met Office,2021-12-06,11 SERVICES,PROGRAMMES,IAME LTD,462591,4000,140304468
BEIS,Met Office,2021-12-22,08 SOFTWARE LICENCES,MARKETS,"IBL SOFTWARE ENGINEERING, SPOL S.R.O.",23251,1402.87,SK2020241883
BEIS,Met Office,2021-12-08,11 SERVICES,MARKETS,"IBL SOFTWARE ENGINEERING, SPOL S.R.O.",461834,1539.84,SK2020241883
BEIS,Met Office,2021-12-08,08 SOFTWARE LICENCES,PROGRAMMES,"IBL SOFTWARE ENGINEERING, SPOL S.R.O.",461912,76992,SK2020241883
BEIS,Met Office,2021-12-15,11 SERVICES,MARKETS,"IBL SOFTWARE ENGINEERING, SPOL S.R.O.",461965,5152.5,SK2020241883
BEIS,Met Office,2021-12-15,11 SERVICES,MARKETS,"IBL SOFTWARE ENGINEERING, SPOL S.R.O.",461966,7699.2,SK2020241883
BEIS,Met Office,2021-12-15,11 SERVICES,MARKETS,"IBL SOFTWARE ENGINEERING, SPOL S.R.O.",461967,5306,SK2020241883
BEIS,Met Office,2021-12-22,11 SERVICES,PROGRAMMES,"IBL SOFTWARE ENGINEERING, SPOL S.R.O.",462203,1524.44,SK2020241883
BEIS,Met Office,2021-12-22,11 SERVICES,PROGRAMMES,"IBL SOFTWARE ENGINEERING, SPOL S.R.O.",462203,50814.72,SK2020241883
BEIS,Met Office,2021-12-22,11 SERVICES,PROGRAMMES,"IBL SOFTWARE ENGINEERING, SPOL S.R.O.",462204,7533.67,SK2020241883
BEIS,Met Office,2021-12-02,08 SOFTWARE LICENCES,TECHNOLOGY AND CIO,Ibm United Kingdom Ltd,462490,11301.7,107328000
BEIS,Met Office,2021-12-22,11 SERVICES,MARKETS,ICIMOD,10489,7161.97,-
BEIS,Met Office,2021-12-21,12 INTERNATIONAL,MARKETS,IDEMS INTERNATIONAL COMMUNITY INTEREST CO,463068,21727,-
BEIS,Met Office,2021-12-08,11 SERVICES,MARKETS,IGAD CLIMATE PREDICTION & APPLICATIONS CNTR,462643,30692.5,-
BEIS,Met Office,2021-12-21,11 SERVICES,PROGRAMMES,Imc Worldwide Ltd,463106,9894,219385881
BEIS,Met Office,2021-12-06,13 MISCELLANEOUS,SCIENCE,Imperial College,462562,333,649926678
BEIS,Met Office,2021-12-01,13 MISCELLANEOUS,MARKETS,INFORMA PLC,462425,13645.16,GB 365 462 636
BEIS,Met Office,2021-12-17,11 SERVICES,MARKETS,INK COPYWRITERS LTD,457932,4500,850847214
BEIS,Met Office,2021-12-06,11 SERVICES,SERVICES,INMARSAT SOLUTIONS (CANADA) INC,462502,45,766144223
BEIS,Met Office,2021-12-06,11 SERVICES,SERVICES,INMARSAT SOLUTIONS (CANADA) INC,462503,1769.95,766144223
BEIS,Met Office,2021-12-01,08 SOFTWARE LICENCES,MARKETS,"INTELLOVATIONS, LLC",10459,1536.54,-
BEIS,Met Office,2021-12-01,11 SERVICES,MARKETS,INTERNATIONAL CIVIL AVIATION ORGANIZATION,462058,30614,-
BEIS,Met Office,2021-12-20,11 SERVICES,CHIEF FINANCIAL OFFICER,INTEROUTE COMMUNICATIONS LIMITED,462998,-4813.34,832 7071 39
BEIS,Met Office,2021-12-20,11 SERVICES,CHIEF FINANCIAL OFFICER,INTEROUTE COMMUNICATIONS LIMITED,462999,11558.6,832 7071 39
BEIS,Met Office,2021-12-22,06 ACCOMMODATION,CHIEF FINANCIAL OFFICER,JAMES & MARCIA BENJAMIN,462583,520,-
BEIS,Met Office,2021-12-20,11 SERVICES,MARKETS,JAMES PERKINS,463039,720,-
BEIS,Met Office,2021-12-09,11 SERVICES,CHIEF FINANCIAL OFFICER,JERSEY TELECOM,462698,1243.58,NOTVATREG
BEIS,Met Office,2021-12-09,11 SERVICES,CHIEF FINANCIAL OFFICER,JERSEY TELECOM,462698,40.74,NOTVATREG
BEIS,Met Office,2021-12-16,13 MISCELLANEOUS,PROGRAMMES,JOHN WILEY & SONS LTD,462849,1384.94,376766987
BEIS,Met Office,2021-12-16,13 MISCELLANEOUS,SCIENCE,JOHN WILEY & SONS LTD,462849,12464.43,376766987
BEIS,Met Office,2021-12-16,13 MISCELLANEOUS,SERVICES,JOHN WILEY & SONS LTD,462849,13849.37,376766987
BEIS,Met Office,2021-12-20,13 MISCELLANEOUS,PROGRAMMES,JOHN WILEY & SONS LTD,462967,13200,376766987
BEIS,Met Office,2021-12-20,11 SERVICES,CHIEF FINANCIAL OFFICER,JONES LANG LASALLE,463027,6350,245894718
BEIS,Met Office,2021-12-22,10 EQUIPMENT MAINTENANCE,SERVICES,Kongsberg Spacetec As,462347,46917,-
BEIS,Met Office,2021-12-15,11 SERVICES,SERVICES,Landmark Information Group Ltd,462909,91790,634509735
BEIS,Met Office,2021-12-15,11 SERVICES,SERVICES,Landmark Information Group Ltd,462910,87620.4,634509735
BEIS,Met Office,2021-12-15,11 SERVICES,PROGRAMMES,Landmark Information Group Ltd,462912,16500,634509735
BEIS,Met Office,2021-12-14,11 SERVICES,MARKETS,LHR BUSINESS SUPPORT CENTRE LTD,462639,217.53,927365404
BEIS,Met Office,2021-12-17,06 ACCOMMODATION,CHIEF FINANCIAL OFFICER,LHR BUSINESS SUPPORT CENTRE LTD,462962,3062.92,927365404
BEIS,Met Office,2021-12-01,11 SERVICES,CHIEF FINANCIAL OFFICER,LICENCE BUREAU LTD,460826,-8,820219467
BEIS,Met Office,2021-12-01,11 SERVICES,CHIEF FINANCIAL OFFICER,LICENCE BUREAU LTD,462415,125.65,820219467
BEIS,Met Office,2021-12-10,06 ACCOMMODATION,SERVICES,LINCOLN POLYTHENE / HOBSON HOLDINGS,462635,270,267249279
BEIS,Met Office,2021-12-01,11 SERVICES,SCIENCE,"LINDE GAS ESPANA, S.A.U.",23205,1073.81,-
BEIS,Met Office,2021-12-16,11 SERVICES,CHIEF FINANCIAL OFFICER,LOGICALIS UK Limited,461341,1150,864475392
BEIS,Met Office,2021-12-16,11 SERVICES,CHIEF FINANCIAL OFFICER,LOGICALIS UK Limited,462859,575,864475392
BEIS,Met Office,2021-12-16,11 SERVICES,CHIEF FINANCIAL OFFICER,LOGICALIS UK Limited,462865,-1150,864475392
BEIS,Met Office,2021-12-16,11 SERVICES,CHIEF FINANCIAL OFFICER,LOGICALIS UK Limited,462866,575,864475392
BEIS,Met Office,2021-12-15,12 INTERNATIONAL,MARKETS,MACITECHSY SOLUTIONS,462378,640,-
BEIS,Met Office,2021-12-15,12 INTERNATIONAL,MARKETS,MACITECHSY SOLUTIONS,462697,1920,-
BEIS,Met Office,2021-12-15,12 INTERNATIONAL,MARKETS,MACITECHSY SOLUTIONS,462697,1030.63,-
BEIS,Met Office,2021-12-08,12 INTERNATIONAL,MARKETS,MARCELLIN HABIMANA,10472,4144.9,-
BEIS,Met Office,2021-12-01,04 CONTRACTORS,PEOPLE,MATRIX SCM LIMITED,462281,264364.93,249 5734 68
BEIS,Met Office,2021-12-06,04 CONTRACTORS,PEOPLE,MATRIX SCM LIMITED,462468,316350.39,249 5734 68
BEIS,Met Office,2021-12-13,04 CONTRACTORS,PEOPLE,MATRIX SCM LIMITED,462704,265431.74,249 5734 68
BEIS,Met Office,2021-12-22,04 CONTRACTORS,PEOPLE,MATRIX SCM LIMITED,462966,245581.67,249 5734 68
BEIS,Met Office,2021-12-22,11 SERVICES,CHIEF FINANCIAL OFFICER,MAWASEM LTD,463072,67544.13,197694731
BEIS,Met Office,2021-12-01,13 MISCELLANEOUS,SERVICES,MEIHUIZEN INTERNATIONAL,462218,407.73,4450101763
BEIS,Met Office,2021-12-23,12 INTERNATIONAL,MARKETS,MET SERVICE OF NEW ZEALAND LTD T/A METSERVICE,10454,1428.67,-
BEIS,Met Office,2021-12-23,12 INTERNATIONAL,MARKETS,MET SERVICE OF NEW ZEALAND LTD T/A METSERVICE,10482,-1451.14,-
BEIS,Met Office,2021-12-01,REVENUE,MARKETS,METEO-FRANCE AGENCE COMPTABLE SEC D2C,23206,18711.46,FR03180060030
BEIS,Met Office,2021-12-01,11 SERVICES,SERVICES,METOCEAN TELEMATICS LTD,10439,380.5,-
BEIS,Met Office,2021-12-22,11 SERVICES,SERVICES,METOCEAN TELEMATICS LTD,10475,353.61,-
BEIS,Met Office,2021-12-14,11 SERVICES,MARKETS,METRO PRODUCTION GROUP LIMITED,461594,25624,548121650
BEIS,Met Office,2021-12-02,08 SOFTWARE LICENCES,TECHNOLOGY AND CIO,MICRO FOCUS SOFTWARE UK LTD,462414,406.99,GB 275 5061 96
BEIS,Met Office,2021-12-08,07 EQUIPMENT,SERVICES,MINTAKA INNOVATIONS,10457,592.3,-
BEIS,Met Office,2021-12-08,07 EQUIPMENT,SERVICES,MINTAKA INNOVATIONS,10457,367.79,-
BEIS,Met Office,2021-12-08,07 EQUIPMENT,SERVICES,MINTAKA INNOVATIONS,10457,10782,-
BEIS,Met Office,2021-12-03,06 ACCOMMODATION,CHIEF FINANCIAL OFFICER,Mitie Landscapes Ltd,461777,-5904.75,GB 416 706 654
BEIS,Met Office,2021-12-03,06 ACCOMMODATION,CHIEF FINANCIAL OFFICER,Mitie Landscapes Ltd,462534,5904.75,GB 416 706 654
BEIS,Met Office,2021-12-03,06 ACCOMMODATION,CHIEF FINANCIAL OFFICER,Mitie Landscapes Ltd,462536,5904.75,GB 416 706 654
BEIS,Met Office,2021-12-09,06 ACCOMMODATION,CHIEF FINANCIAL OFFICER,Mitie Landscapes Ltd,462671,5904.87,GB 416 706 654
BEIS,Met Office,2021-12-20,06 ACCOMMODATION,CHIEF FINANCIAL OFFICER,Mitie Landscapes Ltd,462965,498,GB 416 706 654
BEIS,Met Office,2021-12-01,11 SERVICES,CHIEF FINANCIAL OFFICER,MITIE SECURITY LTD,462344,10294.23,416706654
BEIS,Met Office,2021-12-01,11 SERVICES,CHIEF FINANCIAL OFFICER,MITIE SECURITY LTD,462345,20588.08,416706654
BEIS,Met Office,2021-12-06,11 SERVICES,CHIEF FINANCIAL OFFICER,MITIE SECURITY LTD,462477,1273.14,416706654
BEIS,Met Office,2021-12-06,11 SERVICES,CHIEF FINANCIAL OFFICER,MITIE SECURITY LTD,462478,833.25,416706654
BEIS,Met Office,2021-12-07,11 SERVICES,CHIEF FINANCIAL OFFICER,MITIE SECURITY LTD,462479,249.48,416706654
BEIS,Met Office,2021-12-16,11 SERVICES,PEOPLE,MOMENTUM INCORPORATED,462797,13320,598958541
BEIS,Met Office,2021-12-20,11 SERVICES,MARKETS,MOMENTUM INCORPORATED,463011,6400,598958541
BEIS,Met Office,2021-12-22,11 SERVICES,MARKETS,MONGODB LTD,462433,4992,IE9793087U
BEIS,Met Office,2021-12-13,11 SERVICES,CHIEF FINANCIAL OFFICER,Morton Fraser LLP,462763,475,269129336
BEIS,Met Office,2021-12-16,11 SERVICES,CHIEF FINANCIAL OFFICER,Morton Fraser LLP,462868,150,269129336
BEIS,Met Office,2021-12-13,13 MISCELLANEOUS,CHIEF FINANCIAL OFFICER,MOUCHEL BUS SERV LTD FRC PREPAYERS LEVY AC,462700,972,577815493
BEIS,Met Office,2021-12-10,06 ACCOMMODATION,CHIEF FINANCIAL OFFICER,MOUNT CHARLES GROUP LTD,462729,533.67,517116274
BEIS,Met Office,2021-12-01,06 ACCOMMODATION,CHIEF FINANCIAL OFFICER,MRS FRANCES E LOCKYER,462376,5400,-
BEIS,Met Office,2021-12-06,06 ACCOMMODATION,CHIEF FINANCIAL OFFICER,NATS (EN ROUTE) PLC,462507,6906.3,440379456004
BEIS,Met Office,2021-12-21,TRADE CREDITORS,OTHER,NATWEST COMMERCIAL CARDS DIVISION,463095,142295.94,N/A
BEIS,Met Office,2021-12-21,07 EQUIPMENT,CHIEF FINANCIAL OFFICER,NATWEST COMMERCIAL CARDS DIVISION,463096,5034.9,N/A
BEIS,Met Office,2021-12-01,11 SERVICES,SCIENCE,NIWA,461530,56000,GST059456466
BEIS,Met Office,2021-12-01,11 SERVICES,SCIENCE,NIWA,462427,56000,GST059456466
BEIS,Met Office,2021-12-01,11 SERVICES,SCIENCE,NIWA,462428,-56000,GST059456466
BEIS,Met Office,2021-12-02,13 MISCELLANEOUS,CHIEF FINANCIAL OFFICER,NORSCOTT VENDING SERVICES LTD,462435,85,751402071
BEIS,Met Office,2021-12-14,13 MISCELLANEOUS,CHIEF FINANCIAL OFFICER,NORSCOTT VENDING SERVICES LTD,462789,21.8,751402071
BEIS,Met Office,2021-12-15,11 SERVICES,SERVICES,NSSL GLOBAL LTD,10453,101.22,725151948
BEIS,Met Office,2021-12-15,11 SERVICES,SERVICES,NSSL GLOBAL LTD,10464,52.47,725151948
BEIS,Met Office,2021-12-06,06 ACCOMMODATION,CHIEF FINANCIAL OFFICER,OCS Group UK Limited,462547,29082.02,GB238034379
BEIS,Met Office,2021-12-06,06 ACCOMMODATION,CHIEF FINANCIAL OFFICER,OCS Group UK Limited,462547,109308.18,GB238034379
BEIS,Met Office,2021-12-21,06 ACCOMMODATION,CHIEF FINANCIAL OFFICER,OCS Group UK Limited,463062,15677.26,GB238034379
BEIS,Met Office,2021-12-21,06 ACCOMMODATION,CHIEF FINANCIAL OFFICER,OCS Group UK Limited,463062,109308.18,GB238034379
BEIS,Met Office,2021-12-21,11 SERVICES,MARKETS,ORIENTATIONS EVENTS LTD,463040,8000,374434389
BEIS,Met Office,2021-12-21,11 SERVICES,MARKETS,ORIENTATIONS EVENTS LTD,463040,153784.74,374434389
BEIS,Met Office,2021-12-02,11 SERVICES,MARKETS,OSBORNE CLARKE LLP,462404,6667.5,GB138187353
BEIS,Met Office,2021-12-20,11 SERVICES,MARKETS,OSBORNE CLARKE LLP,463028,4500,GB138187353
BEIS,Met Office,2021-12-06,11 SERVICES,MARKETS,OVERSEAS DEVELOPMENT INSTITUTE SALES LTD,462426,5165,250 3150 54
BEIS,Met Office,2021-12-15,11 SERVICES,MARKETS,OVERSEAS DEVELOPMENT INSTITUTE SALES LTD,462906,0,250 3150 54
BEIS,Met Office,2021-12-15,11 SERVICES,MARKETS,PAUL WATKISS ASSOCIATES LTD,462851,4450,869587641
BEIS,Met Office,2021-12-20,11 SERVICES,PROGRAMMES,PERFORMANCE JONES L.L.C.,462860,10000,-
BEIS,Met Office,2021-12-02,STOCK,SERVICES,PHOTONIC SOLUTIONS LTD,462360,0,724212864
BEIS,Met Office,2021-12-02,TRADE CREDITORS,SERVICES,PHOTONIC SOLUTIONS LTD,462360,1600,724212864
BEIS,Met Office,2021-12-02,11 SERVICES,SERVICES,PHOTONIC SOLUTIONS LTD,462360,25,724212864
BEIS,Met Office,2021-12-22,11 SERVICES,PEOPLE,PLURALSIGHT,10496,6979.41,EU826020045
BEIS,Met Office,2021-12-13,06 ACCOMMODATION,CHIEF FINANCIAL OFFICER,POD POINT,462679,-350,278743455
BEIS,Met Office,2021-12-13,06 ACCOMMODATION,CHIEF FINANCIAL OFFICER,POD POINT,462680,1570,278743455
BEIS,Met Office,2021-12-22,FIXTURE & FITTINGS,CHIEF FINANCIAL OFFICER,POSTURITE (UK) LTD,460498,180.35,583565114
BEIS,Met Office,2021-12-02,11 SERVICES,CHIEF FINANCIAL OFFICER,POSTURITE (UK) LTD,462353,50,583565114
BEIS,Met Office,2021-12-09,11 SERVICES,CHIEF FINANCIAL OFFICER,POSTURITE (UK) LTD,462589,647.87,583565114
BEIS,Met Office,2021-12-14,11 SERVICES,CHIEF FINANCIAL OFFICER,POSTURITE (UK) LTD,462668,50,583565114
BEIS,Met Office,2021-12-14,11 SERVICES,CHIEF FINANCIAL OFFICER,POSTURITE (UK) LTD,462669,50,583565114
BEIS,Met Office,2021-12-14,11 SERVICES,CHIEF FINANCIAL OFFICER,POSTURITE (UK) LTD,462714,598.92,583565114
BEIS,Met Office,2021-12-16,11 SERVICES,CHIEF FINANCIAL OFFICER,POSTURITE (UK) LTD,462806,633.55,583565114
BEIS,Met Office,2021-12-06,06 ACCOMMODATION,CHIEF FINANCIAL OFFICER,POWER NI ENERGY LTD,462505,606.98,617518142
BEIS,Met Office,2021-12-09,07 EQUIPMENT,SCIENCE,PRECISION WATERJET LTD,462673,7.5,879979318
BEIS,Met Office,2021-12-09,07 EQUIPMENT,SCIENCE,PRECISION WATERJET LTD,462673,34.4,879979318
BEIS,Met Office,2021-12-02,08 SOFTWARE LICENCES,TECHNOLOGY AND CIO,PROSPERON NETWORKS LTD,462342,6431.42,889545649
BEIS,Met Office,2021-12-13,10 EQUIPMENT MAINTENANCE,SERVICES,QROMETRIC LIMITED,462703,4095,203980028
BEIS,Met Office,2021-12-13,10 EQUIPMENT MAINTENANCE,SERVICES,QROMETRIC LIMITED,462710,1955,203980028
BEIS,Met Office,2021-12-06,07 EQUIPMENT,SERVICES,R S Aqua Ltd,461163,889,370059760
BEIS,Met Office,2021-12-09,11 SERVICES,PROGRAMMES,RAIN PLUS PLUS LIMITED,462561,22400,-
BEIS,Met Office,2021-12-22,11 SERVICES,MARKETS,Red Cross Red Crescent Climate Centre,23273,39008.01,N/A
BEIS,Met Office,2021-12-06,11 SERVICES,PROGRAMMES,REDACTED PERSONAL DATA,462546,20000,N/A
BEIS,Met Office,2021-12-10,06 ACCOMMODATION,CHIEF FINANCIAL OFFICER,REDACTED PERSONAL DATA,462652,3754,001874305
BEIS,Met Office,2021-12-15,11 SERVICES,PEOPLE,REDACTED PERSONAL DATA,462783,210,143043312
BEIS,Met Office,2021-12-15,11 SERVICES,CHIEF FINANCIAL OFFICER,REDACTED PERSONAL DATA,462915,-374,729159704
BEIS,Met Office,2021-12-15,11 SERVICES,CHIEF FINANCIAL OFFICER,REDACTED PERSONAL DATA,462916,-635,729159704
BEIS,Met Office,2021-12-15,11 SERVICES,CHIEF FINANCIAL OFFICER,REDACTED PERSONAL DATA,462917,-272,729159704
BEIS,Met Office,2021-12-15,11 SERVICES,CHIEF FINANCIAL OFFICER,REDACTED PERSONAL DATA,462918,-238,729159704
BEIS,Met Office,2021-12-20,11 SERVICES,MARKETS,REDACTED PERSONAL DATA,463024,720,-
BEIS,Met Office,2021-12-20,11 SERVICES,MARKETS,REDACTED PERSONAL DATA,463026,720,-
BEIS,Met Office,2021-12-07,11 SERVICES,PEOPLE,RESULTS CATALYSTS LTD,462588,1200,811 9181 42
BEIS,Met Office,2021-12-08,11 SERVICES,PROGRAMMES,RICHARD NORBY,10458,539.66,-
BEIS,Met Office,2021-12-09,06 ACCOMMODATION,CHIEF FINANCIAL OFFICER,RIVER RIDGE,462641,108.98,176286083
BEIS,Met Office,2021-12-07,11 SERVICES,PEOPLE,RIVER TRAINING AND HR,462566,800,-
BEIS,Met Office,2021-12-16,11 SERVICES,PEOPLE,RIVER TRAINING AND HR,462963,800,-
BEIS,Met Office,2021-12-06,11 SERVICES,PROGRAMMES,ROWE IT LTD,462554,87400,924964394
BEIS,Met Office,2021-12-06,11 SERVICES,PROGRAMMES,ROWE IT LTD,462555,59085,924964394
BEIS,Met Office,2021-12-06,11 SERVICES,PROGRAMMES,ROWE IT LTD,462557,57333.75,924964394
BEIS,Met Office,2021-12-06,11 SERVICES,PROGRAMMES,ROWE IT LTD,462558,92102.47,924964394
BEIS,Met Office,2021-12-06,11 SERVICES,PROGRAMMES,ROWE IT LTD,462559,16500,924964394
BEIS,Met Office,2021-12-08,08 SOFTWARE LICENCES,MARKETS,ROWE IT LTD,462560,6000,924964394
BEIS,Met Office,2021-12-16,13 MISCELLANEOUS,SERVICES,Royal Meteorological Society,462796,47.36,-
BEIS,Met Office,2021-12-16,13 MISCELLANEOUS,SERVICES,Royal Meteorological Society,462796,33281.13,-
BEIS,Met Office,2021-12-17,11 SERVICES,SERVICES,Royal Meteorological Society,462976,6676.84,-
BEIS,Met Office,2021-12-01,11 SERVICES,MARKETS,RSM,462341,5000,890965570
BEIS,Met Office,2021-12-01,11 SERVICES,MARKETS,RUNTIME COLLECTIVE LTD T/A BRANDWATCH,462405,11979.96,754750710
BEIS,Met Office,2021-12-21,06 ACCOMMODATION,CHIEF FINANCIAL OFFICER,SABRELINE SPECIALIST MACHINE TOOL SERVICES,462978,1422,GN-871-4660-13
BEIS,Met Office,2021-12-21,06 ACCOMMODATION,CHIEF FINANCIAL OFFICER,SABRELINE SPECIALIST MACHINE TOOL SERVICES,462978,1411,GN-871-4660-13
BEIS,Met Office,2021-12-15,06 ACCOMMODATION,CHIEF FINANCIAL OFFICER,SAFESTORE LTD,462805,2815.28,722887607
BEIS,Met Office,2021-12-23,08 SOFTWARE LICENCES,TECHNOLOGY AND CIO,SECTIGO LTD,442320,31200,834875295
BEIS,Met Office,2021-12-23,08 SOFTWARE LICENCES,TECHNOLOGY AND CIO,SECTIGO LTD,454815,-31200,834875295
BEIS,Met Office,2021-12-17,11 SERVICES,PEOPLE,SKILLTEC LIMITED,461049,995,909833105
BEIS,Met Office,2021-12-01,REVENUE,MARKETS,Smhi,23210,1671.76,SE202100069601
BEIS,Met Office,2021-12-21,11 SERVICES,MARKETS,SOCIAL SENSING LTD,463102,4000,-
BEIS,Met Office,2021-12-22,11 SERVICES,MARKETS,SOCIAL SENSING LTD,463103,2758,-
BEIS,Met Office,2021-12-13,11 SERVICES,SERVICES,SOFTWIRE TECHNOLOGY LIMITED,462636,2520,752 1253 57
BEIS,Met Office,2021-12-13,11 SERVICES,SERVICES,SOFTWIRE TECHNOLOGY LIMITED,462705,2520,752 1253 57
BEIS,Met Office,2021-12-01,06 ACCOMMODATION,CHIEF FINANCIAL OFFICER,South West Water Ltd,462386,33.65,236873674
BEIS,Met Office,2021-12-09,06 ACCOMMODATION,CHIEF FINANCIAL OFFICER,South West Water Ltd,462653,454.1,236873674
BEIS,Met Office,2021-12-09,06 ACCOMMODATION,CHIEF FINANCIAL OFFICER,South West Water Ltd,462716,942.46,236873674
BEIS,Met Office,2021-12-10,11 SERVICES,MARKETS,SPOKE (INTERACTIVE) LTD,462674,700,840156451
BEIS,Met Office,2021-12-08,13 MISCELLANEOUS,MARKETS,SPRINGER CUSTOMER SERVICE CENTER GMBH,23272,12688.79,209719094
BEIS,Met Office,2021-12-13,11 SERVICES,TECHNOLOGY AND CIO,SPRUCE CONSULTING,462751,1318,724384923
BEIS,Met Office,2021-12-08,11 SERVICES,TECHNOLOGY AND CIO,SSE CONTRACTING LTD,462556,10393.84,382894546
BEIS,Met Office,2021-12-20,07 EQUIPMENT,SERVICES,ST CROSS ELECTRONICS,462947,569.88,330158101
BEIS,Met Office,2021-12-20,07 EQUIPMENT,SERVICES,ST CROSS ELECTRONICS,462947,15,330158101
BEIS,Met Office,2021-12-20,07 EQUIPMENT,SERVICES,ST CROSS ELECTRONICS,462947,278.88,330158101
BEIS,Met Office,2021-12-20,07 EQUIPMENT,SERVICES,ST CROSS ELECTRONICS,462947,96.75,330158101
BEIS,Met Office,2021-12-20,07 EQUIPMENT,SERVICES,ST CROSS ELECTRONICS,462947,857.8,330158101
BEIS,Met Office,2021-12-14,11 SERVICES,CHIEF FINANCIAL OFFICER,SURE SOUTH ATLANTIC LTD,462808,4743,-
BEIS,Met Office,2021-12-14,11 SERVICES,CHIEF FINANCIAL OFFICER,SURE SOUTH ATLANTIC LTD,462810,770,-
BEIS,Met Office,2021-12-16,11 SERVICES,CHIEF FINANCIAL OFFICER,SURE SOUTH ATLANTIC LTD,462940,1244.34,NOVATREG
BEIS,Met Office,2021-12-14,11 SERVICES,CHIEF FINANCIAL OFFICER,SURE SOUTH ATLANTIC LTD (ST HELENA),462787,1004.42,30005
BEIS,Met Office,2021-12-03,11 SERVICES,PEOPLE,SWANTECH LOGISTICS LTD,462489,900,769332401
BEIS,Met Office,2021-12-01,11 SERVICES,CHIEF FINANCIAL OFFICER,SWISSCOM (SCHWEIZ) AG,461869,89.29,-
BEIS,Met Office,2021-12-22,11 SERVICES,CHIEF FINANCIAL OFFICER,SWISSCOM (SCHWEIZ) AG,462728,90.48,-
BEIS,Met Office,2021-12-08,11 SERVICES,MARKETS,SYNTAGMA TRANSLATIONS,461750,519.84,-
BEIS,Met Office,2021-12-20,06 ACCOMMODATION,CHIEF FINANCIAL OFFICER,TATTON ESTATE C/O FISHER GERMAN LLP,463041,1100,185 6649 58
BEIS,Met Office,2021-12-02,11 SERVICES,CHIEF FINANCIAL OFFICER,TELEFONICA O2 UK LIMITED,462384,50.14,778603785
BEIS,Met Office,2021-12-13,11 SERVICES,CHIEF FINANCIAL OFFICER,TELEFONICA O2 UK LIMITED,462713,8130.61,778603785
BEIS,Met Office,2021-12-01,11 SERVICES,CHIEF FINANCIAL OFFICER,TELIA FINLAND OYJ,23259,149.44,FI14756079
BEIS,Met Office,2021-12-07,06 ACCOMMODATION,CHIEF FINANCIAL OFFICER,TENNIE FACILITIES PROPERTY MANAGEMENT LTD,462584,186.43,982055803
BEIS,Met Office,2021-12-03,06 ACCOMMODATION,CHIEF FINANCIAL OFFICER,THE CLEANER CREW COMPANY,462409,638,343579772
BEIS,Met Office,2021-12-03,06 ACCOMMODATION,CHIEF FINANCIAL OFFICER,THE CLEANER CREW COMPANY,462409,70,343579772
BEIS,Met Office,2021-12-09,05 CONSULTANTS,OFFICE OF THE CEO,THE LEGAL DIRECTOR,462665,3300,899 338941
BEIS,Met Office,2021-12-16,11 SERVICES,PEOPLE,THE STRENGTHS PEOPLE LTD,462788,2000,206868488
BEIS,Met Office,2021-12-06,11 SERVICES,PEOPLE,THYMOMETRICS LIMITED,462553,1040,GB 154 4517 15
BEIS,Met Office,2021-12-02,11 SERVICES,MARKETS,TONGUE FU,462379,1840,-
BEIS,Met Office,2021-12-23,11 SERVICES,SERVICES,Trinity House,460644,-24129,243120414
BEIS,Met Office,2021-12-23,11 SERVICES,SERVICES,Trinity House,460651,24129,243120414
BEIS,Met Office,2021-12-23,11 SERVICES,SERVICES,Trinity House,460652,1122.45,243120414
BEIS,Met Office,2021-12-23,11 SERVICES,SERVICES,Trinity House,461266,-1122.45,243120414
BEIS,Met Office,2021-12-08,11 SERVICES,PROGRAMMES,UCAR INCOMING PAYMENTS,10463,20466.76,-
BEIS,Met Office,2021-12-23,11 SERVICES,PROGRAMMES,UK ATOMIC ENERGY AUTHORITY,460212,-25000,GB570101391
BEIS,Met Office,2021-12-23,11 SERVICES,PROGRAMMES,UK ATOMIC ENERGY AUTHORITY,461155,25000,GB570101391
BEIS,Met Office,2021-12-13,11 SERVICES,PROGRAMMES,UK CENTRE FOR ECOLOGY & HYDROLOGY (UKCEH),462676,35939.67,336940192
BEIS,Met Office,2021-12-20,11 SERVICES,PROGRAMMES,UK CENTRE FOR ECOLOGY & HYDROLOGY (UKCEH),463016,108923,336940192
BEIS,Met Office,2021-12-20,11 SERVICES,PROGRAMMES,UK CENTRE FOR ECOLOGY & HYDROLOGY (UKCEH),463017,11446,336940192
BEIS,Met Office,2021-12-02,11 SERVICES,TECHNOLOGY AND CIO,UKCLOUD LTD,462467,1581,172647982
BEIS,Met Office,2021-12-02,11 SERVICES,TECHNOLOGY AND CIO,UKCLOUD LTD,462467,27,172647982
BEIS,Met Office,2021-12-22,11 SERVICES,MARKETS,UKRI,23275,171721.6,GB287461957
BEIS,Met Office,2021-12-01,11 SERVICES,MARKETS,ULTRA ELECTRONICS LTD NUCLEAR CONTROL SYSTEMS,462406,45000,123340754
BEIS,Met Office,2021-12-01,11 SERVICES,MARKETS,ULTRA ELECTRONICS LTD NUCLEAR CONTROL SYSTEMS,462407,54000,123340754
BEIS,Met Office,2021-12-09,11 SERVICES,MARKETS,ULTRA ELECTRONICS LTD NUCLEAR CONTROL SYSTEMS,462544,4926.81,123340754
BEIS,Met Office,2021-12-08,12 INTERNATIONAL,SERVICES,Unesco,462592,10000,-
BEIS,Met Office,2021-12-06,11 SERVICES,SCIENCE,University Of Bristol,462508,967,991261800
BEIS,Met Office,2021-12-14,13 MISCELLANEOUS,SCIENCE,University Of Bristol,462818,100,991261800
BEIS,Met Office,2021-12-08,13 MISCELLANEOUS,SCIENCE,University Of East Anglia,462634,333.34,595183505
BEIS,Met Office,2021-12-01,11 SERVICES,MARKETS,University Of Leeds,462418,3311.76,613451470
BEIS,Met Office,2021-12-01,11 SERVICES,PROGRAMMES,University Of Leeds,462421,149662.6,613451470
BEIS,Met Office,2021-12-06,11 SERVICES,PROGRAMMES,University Of Leicester,462552,10350,916583894
BEIS,Met Office,2021-12-06,11 SERVICES,PROGRAMMES,University Of Leicester,462552,198865.01,916583894
BEIS,Met Office,2021-12-14,11 SERVICES,PROGRAMMES,University Of Reading,460531,33169.9,200012659
BEIS,Met Office,2021-12-14,11 SERVICES,PROGRAMMES,University Of Reading,460531,33629.84,200012659
BEIS,Met Office,2021-12-14,11 SERVICES,PROGRAMMES,University Of Reading,460627,150000,200012659
BEIS,Met Office,2021-12-03,11 SERVICES,PROGRAMMES,University Of Reading,462408,133560,200012659
BEIS,Met Office,2021-12-06,11 SERVICES,PROGRAMMES,University Of Reading,462549,17200.41,200012659
BEIS,Met Office,2021-12-06,11 SERVICES,PROGRAMMES,University Of Reading,462549,10773.29,200012659
BEIS,Met Office,2021-12-14,13 MISCELLANEOUS,SCIENCE,University Of Reading,462858,200,200012659
BEIS,Met Office,2021-12-20,11 SERVICES,PROGRAMMES,University Of Reading,463021,28249.71,200012659
BEIS,Met Office,2021-12-22,13 MISCELLANEOUS,SCIENCE,University Of Reading,463069,1000,200012659
BEIS,Met Office,2021-12-10,13 MISCELLANEOUS,SCIENCE,University Of Surrey,460532,1000,688953065
BEIS,Met Office,2021-12-15,STOCK,SERVICES,VAISALA LTD,23244,0,336100011
BEIS,Met Office,2021-12-15,TRADE CREDITORS,SERVICES,VAISALA LTD,23244,79152.48,336100011
BEIS,Met Office,2021-12-02,06 ACCOMMODATION,CHIEF FINANCIAL OFFICER,VICKERY HOLMAN,462432,4015.62,943875678
BEIS,Met Office,2021-12-16,11 SERVICES,CHIEF FINANCIAL OFFICER,Vodafone Limited,462913,4189.57,569953277
BEIS,Met Office,2021-12-06,11 SERVICES,MARKETS,WALNUT UNLIMITED LIMITED,462567,9440,648857968
BEIS,Met Office,2021-12-09,06 ACCOMMODATION,CHIEF FINANCIAL OFFICER,WEST LANCASHIRE BOROUGH COUNCIL,462715,128.5,-
BEIS,Met Office,2021-12-20,06 ACCOMMODATION,CHIEF FINANCIAL OFFICER,WINGFIELD DIGBY SETTLED ESTATE,463010,2600,GB 930669020
BEIS,Met Office,2021-12-06,11 SERVICES,TECHNOLOGY AND CIO,WIREFAST LTD,462474,1243.48,749536001
BEIS,Met Office,2021-12-06,11 SERVICES,TECHNOLOGY AND CIO,WIREFAST LTD,462475,2028.62,749536001
BEIS,Met Office,2021-12-06,11 SERVICES,TECHNOLOGY AND CIO,WIREFAST LTD,462476,1189.62,749536001
BEIS,Met Office,2021-12-02,10 EQUIPMENT MAINTENANCE,SERVICES,YOUNG CALIBRATION LIMITED,462385,1080,673900720
BEIS,Met Office,2021-12-02,11 SERVICES,SERVICES,YOUNG CALIBRATION LIMITED,462385,15,673900720
BEIS,Met Office,2021-12-23,10 EQUIPMENT MAINTENANCE,SERVICES,YOUNG CALIBRATION LIMITED,463100,1800,673900720
BEIS,Met Office,2021-12-23,11 SERVICES,SERVICES,YOUNG CALIBRATION LIMITED,463100,15,673900720
BEIS,Met Office,2021-12-21,10 EQUIPMENT MAINTENANCE,SERVICES,YOUNG CALIBRATION LIMITED,463101,3250,673900720
BEIS,Met Office,2021-12-21,11 SERVICES,SERVICES,YOUNG CALIBRATION LIMITED,463101,15,673900720
